bitfinex/quotes_BTCUSD_20251230
["timestamp","ask_amount","ask_price","bid_price","bid_amount"]
[1767106835947,0.13646,88994.0,88979.0,0.0002]
[1767106836146,0.13646,88992.0,88979.0,0.00055611]
[1767106836424,0.01144,88991.0,88979.0,0.00055611]
[1767106836623,0.13646,88992.0,88979.0,0.00055611]
[1767106836827,0.13646,88992.0,88980.0,0.01123848]
[1767106837105,0.0002,88999.0,88979.0,0.00055611]
[1767106837106,0.13646,88990.0,88979.0,0.00055611]
[1767106837870,0.13646,88988.0,88979.0,7.11e-06]
[1767106838071,0.01144,88991.0,88979.0,7.11e-06]
[1767106838072,0.13646,88986.0,88979.0,7.11e-06]
[1767106838280,0.13646,88984.0,88979.0,7.11e-06]
[1767106838683,0.13646,88982.0,88979.0,7.11e-06]
[1767106838845,0.0564,88983.0,88948.0,0.06813718]
[1767106838846,0.13646,88980.0,88952.0,0.01124201]
[1767106839054,0.13681538,88980.0,88955.0,0.01124163]
[1767106839229,0.13681538,88980.0,88949.0,0.01124239]
[1767106839230,0.13646,88978.0,88949.0,0.01124239]
[1767106839432,0.13646,88978.0,88948.0,0.0006821]
[1767106839996,0.13646,88978.0,88958.0,0.01124125]
[1767106840256,0.13646,88976.0,88959.0,0.00131703]
[1767106840557,0.13646,88976.0,88948.0,0.0121221]
[1767106840558,0.13646,88976.0,88948.0,0.0006821]
[1767106840697,0.13646,88976.0,88952.0,0.00131714]
[1767106840899,0.13646,88976.0,88948.0,0.0006821]
[1767106841305,0.13646,88976.0,88922.0,0.04496]
[1767106841306,0.13646,88976.0,88920.0,0.0002]
[1767106841507,0.13646,88974.0,88928.0,0.01124505]
[1767106841763,0.01042208,88973.0,88926.0,0.0112453]
[1767106841972,0.14688208,88972.0,88923.0,0.01124568]
[1767106842271,0.13646,88970.0,88920.0,0.0002]
[1767106842474,0.13646,88968.0,88920.0,0.0002]
[1767106842631,0.00035538,88980.0,88924.0,0.01124555]
[1767106842632,0.13646,88966.0,88924.0,0.01124555]
[1767106842833,0.13646,88964.0,88930.0,0.01124479]
[1767106843061,0.13646,88964.0,88927.0,0.01124517]
[1767106843062,0.13646,88962.0,88931.0,0.00084461]
[1767106843236,0.13646,88960.0,88931.0,0.00084461]
[1767106843442,0.13646,88958.0,88931.0,0.00084461]
[1767106843853,0.13646,88958.0,88939.0,0.01124366]
[1767106844214,0.00035538,88980.0,88914.0,0.33740445]
[1767106844215,0.13646,88956.0,88935.0,0.01124416]
[1767106844333,0.13646,88956.0,88939.0,0.01124366]
[1767106844531,0.13646,88956.0,88937.0,0.01124391]
[1767106844785,0.13646,88956.0,88939.0,0.01124366]
[1767106844992,0.13646,88956.0,88938.0,0.01124378]
[1767106845193,0.13646,88956.0,88935.0,0.05622045]
[1767106845194,0.13646,88956.0,88935.0,0.01124416]
[1767106845735,0.13646,88956.0,88929.0,0.01124492]
[1767106845919,0.13646,88956.0,88927.0,0.01124517]
[1767106846124,0.13646,88956.0,88920.0,0.22511998]
[1767106846125,0.13646,88956.0,88920.0,0.0002]
[1767106846651,0.13646,88956.0,88925.0,0.01124543]
[1767106846863,0.13646,88956.0,88927.0,0.01124517]
[1767106847299,0.13646,88956.0,88921.0,0.01124593]
[1767106847523,0.13646,88956.0,88920.0,0.0002]
[1767106847754,0.15125,88956.0,88920.0,0.0002]
[1767106847991,0.13646,88956.0,88920.0,0.0002]
[1767106848203,0.00035538,88980.0,88920.0,0.0002]
[1767106848204,0.13564,88954.0,88920.0,0.0002]
[1767106848404,0.00035538,88980.0,88920.0,0.0002]
[1767106848405,0.13564,88952.0,88920.0,0.0002]
[1767106848532,0.13564,88950.0,88920.0,0.0002]
[1767106848735,0.13564,88948.0,88920.0,0.0002]
[1767106849058,0.0002,88920.0,88908.0,0.00054809]
[1767106849260,0.13564,88918.0,88910.0,0.0002]
[1767106849609,0.13564,88909.0,88889.0,0.00011535]
[1767106849877,0.13564,88907.0,88889.0,0.00011535]
[1767106850293,0.13564,88907.0,88890.0,0.01124985]
[1767106850502,0.01148,88908.0,88888.0,18.50450636]
[1767106850503,0.0004,88901.0,88888.0,18.50450636]
[1767106850703,0.05644,88900.0,88888.0,18.5046132]
[1767106850917,0.13564,88899.0,88888.0,18.5046132]
[1767106851267,0.135291,88899.0,88888.0,18.5046132]
[1767106851475,0.13564,88897.0,88888.0,18.5046132]
[1767106851699,0.13564,88897.0,88888.0,18.5040642]
[1767106852873,0.13564,88895.0,88888.0,18.5040642]
[1767106853055,0.13564,88893.0,88888.0,18.5040642]
[1767106853655,0.13564,88893.0,88888.0,18.39836987]
[1767106853906,0.13564,88893.0,88888.0,17.04540763]
[1767106854105,0.13808,88891.0,88888.0,16.54653025]
[1767106854328,0.13808,88889.0,88888.0,16.10570288]
[1767106854529,0.18308,88889.0,88888.0,15.79937278]
[1767106854885,0.10802136,88889.0,88888.0,15.79937278]
[1767106855007,0.10747236,88889.0,88888.0,15.79937278]
[1767106855205,0.10588171,88889.0,88888.0,15.79937278]
[1767106855441,0.16236171,88889.0,88888.0,15.79937278]
[1767106855645,0.16236171,88889.0,88888.0,15.49937278]
[1767106855822,0.17859788,88889.0,88888.0,13.47792267]
[1767106856020,0.17859788,88889.0,88888.0,12.66254111]
[1767106856021,0.07271617,88889.0,88888.0,12.66254111]
[1767106856244,0.06683819,88889.0,88888.0,12.30627853]
[1767106856445,0.05648,88889.0,88888.0,12.27247524]
[1767106856647,0.06683279,88889.0,88888.0,11.91616925]
[1767106856851,0.06683279,88889.0,88888.0,11.57548925]
[1767106856852,0.07883279,88889.0,88888.0,11.57548925]
[1767106857111,0.07883279,88889.0,88888.0,10.42834343]
[1767106857112,0.08551607,88889.0,88888.0,10.42834343]
[1767106857331,0.08551607,88889.0,88888.0,10.20328343]
[1767106857332,0.02903607,88889.0,88888.0,10.20328343]
[1767106857537,0.07883279,88889.0,88888.0,10.20256821]
[1767106857735,0.05648,88889.0,88888.0,10.20256821]
[1767106858173,0.05648,88889.0,88888.0,9.969326]
[1767106858369,0.05648,88889.0,88888.0,9.86064304]
[1767106858551,0.05648,88889.0,88888.0,9.84844783]
[1767106858772,0.062128,88889.0,88888.0,9.65688405]
[1767106858954,0.062128,88889.0,88888.0,4.47314926]
[1767106858955,0.094128,88889.0,88888.0,4.47314926]
[1767106859116,0.094128,88889.0,88888.0,4.13756141]
[1767106859117,0.062128,88889.0,88888.0,4.13756141]
[1767106859316,5.05,88888.0,88877.0,0.0004011]
[1767106859516,5.05,88888.0,88839.0,0.00023759]
[1767106859517,5.05,88886.0,88839.0,0.00023759]
[1767106859717,5.05,88886.0,88851.0,8.812e-05]
[1767106859718,3.5619,88886.0,88851.0,8.812e-05]
[1767106859925,3.5619,88886.0,88839.0,0.00023759]
[1767106859926,0.012,88884.0,88839.0,0.00023759]
[1767106860163,0.012,88884.0,88839.0,0.00010736]
[1767106860540,0.012,88882.0,88839.0,0.00010736]
[1767106861131,0.012,88880.0,88839.0,0.00010736]
[1767106861373,0.01124834,88902.0,88839.0,0.00010736]
[1767106861524,0.012,88878.0,88839.0,0.00010736]
[1767106861969,0.012,88876.0,88840.0,4.073318]
[1767106862168,0.012,88876.0,88839.0,0.00010736]
[1767106862491,6.1e-05,88840.0,88839.0,0.00010736]
[1767106862715,0.01148,88840.0,88839.0,0.00010736]
[1767106862912,0.01148,88840.0,88814.0,0.03502379]
[1767106863133,0.012,88839.0,88814.0,0.03502379]
[1767106863270,0.01158645,88840.0,88814.0,0.03502379]
[1767106863271,0.04504,88838.0,88814.0,0.03502379]
[1767106863482,0.01148,88837.0,88814.0,0.03502379]
[1767106863883,0.01148,88837.0,88831.0,0.00035839]
[1767106864089,0.00010645,88840.0,88831.0,0.00035839]
[1767106864351,0.06245719,88879.0,88831.0,0.00035839]
[1767106864555,0.0654,88878.0,88831.0,0.00035839]
[1767106864854,0.012,88876.0,88831.0,0.00035839]
[1767106865191,0.012,88874.0,88831.0,0.00035839]
[1767106865420,0.012,88874.0,88831.0,0.00025239]
[1767106865421,0.00437662,88873.0,88831.0,0.00025239]
[1767106866596,0.00437662,88873.0,88831.0,0.00020921]
[1767106866597,0.012,88863.0,88831.0,0.00020921]
[1767106866841,0.01125416,88856.0,88831.0,0.00016723]
[1767106867047,1.008682,88860.0,88814.0,0.03502379]
[1767106867048,0.0011643,88827.0,88814.0,0.03502379]
[1767106867255,0.0011643,88827.0,88814.0,0.02708516]
[1767106867256,0.012,88825.0,88814.0,0.02708516]
[1767106867452,0.00696843,88824.0,88814.0,0.00550329]
[1767106867652,0.07005707,88823.0,88814.0,0.00550329]
[1767106868010,0.01148,88822.0,88814.0,0.00550329]
[1767106868375,0.07005707,88823.0,88814.0,0.00550329]
[1767106868376,0.05652,88821.0,88814.0,0.00560974]
[1767106868952,0.05652,88821.0,88811.0,0.0004]
[1767106869154,0.01397414,88820.0,88811.0,0.0004]
[1767106869447,0.05662686,88821.0,88811.0,0.0004]
[1767106870191,0.12657707,88820.0,88800.0,0.093161]
[1767106870398,0.01148,88819.0,88800.0,0.093161]
[1767106871229,0.01093,88818.0,88800.0,0.093161]
[1767106871936,0.06876308,88820.0,88800.0,0.093161]
[1767106872078,0.01148,88819.0,88800.0,0.093161]
[1767106872690,0.01148,88819.0,88792.0,1e-08]
[1767106872893,0.00010686,88821.0,88792.0,1e-08]
[1767106873227,0.06881355,88819.0,88792.0,1e-08]
[1767106873430,0.01254404,88818.0,88792.0,1e-08]
[1767106874043,0.06881355,88819.0,88792.0,1e-08]
[1767106874247,0.06844215,88819.0,88792.0,1e-08]
[1767106874453,0.0536697,88819.0,88809.0,0.54188085]
[1767106874611,0.0536697,88819.0,88792.0,1e-08]
[1767106874612,0.0536697,88819.0,88803.0,0.14475]
[1767106876451,0.0536697,88819.0,88795.0,0.01148]
[1767106877039,0.0536697,88819.0,88801.0,0.14203]
[1767106877518,0.0536697,88819.0,88795.0,0.01148]
[1767106877519,0.00010686,88821.0,88810.0,0.14203]
[1767106877720,0.0002,88829.0,88811.0,0.01148]
[1767106877944,0.0002,88829.0,88811.0,0.01158686]
[1767106878349,0.0002,88829.0,88811.0,0.16487672]
[1767106878523,0.00111382,88828.0,88811.0,0.15361686]
[1767106878725,0.00111382,88828.0,88811.0,0.14213686]
[1767106878947,0.00111382,88828.0,88811.0,0.00010686]
[1767106879626,0.00111382,88828.0,88812.0,0.00112605]
[1767106879830,0.00111382,88828.0,88811.0,0.14213686]
[1767106880078,0.0002,88829.0,88818.0,0.79923433]
[1767106880298,0.0002,88829.0,88811.0,0.14213686]
[1767106880485,0.0002,88829.0,88811.0,0.00010686]
[1767106880631,0.000549,88811.0,88777.0,0.04504]
[1767106880834,0.00065588,88811.0,88785.0,0.01148]
[1767106881135,0.0104472,88810.0,88778.0,0.01148]
[1767106881355,0.0104472,88809.0,88778.0,0.01148]
[1767106881673,0.00010688,88811.0,88778.0,0.01148]
[1767106881848,0.01045654,88810.0,88778.0,0.01148]
[1767106882051,0.01045654,88809.0,88780.0,0.79923433]
[1767106882212,0.01045654,88808.0,88780.0,0.79923433]
[1767106882419,0.01045654,88807.0,88780.0,0.79923433]
[1767106882623,0.01045654,88806.0,88780.0,0.79923433]
[1767106882821,0.01045654,88806.0,88778.0,0.01148]
[1767106882822,0.01045654,88805.0,88781.0,0.1428271]
[1767106883065,0.01045654,88804.0,88781.0,0.0007971]
[1767106883307,0.01045654,88804.0,88770.0,0.00023782]
[1767106883308,0.01045654,88803.0,88770.0,0.00023782]
[1767106883461,0.01045654,88802.0,88770.0,0.00023782]
[1767106883661,0.01045654,88801.0,88770.0,0.00023782]
[1767106884056,0.02193654,88800.0,88770.0,0.00023782]
[1767106884226,0.02193654,88800.0,88750.0,0.79923433]
[1767106884227,0.000237,88770.0,88729.0,0.14203]
[1767106884432,0.01045654,88769.0,88729.0,0.14203]
[1767106884627,0.01045654,88769.0,88720.0,0.94126433]
[1767106884628,0.01718189,88769.0,88720.0,0.94126433]
[1767106884906,0.06701654,88768.0,88721.0,0.14203]
[1767106885106,0.05295,88778.0,88721.0,0.14203]
[1767106885107,0.01045654,88767.0,88721.0,0.14203]
[1767106885316,0.01045654,88766.0,88740.0,0.79923433]
[1767106885440,0.01049092,88765.0,88750.0,0.79923433]
[1767106885648,0.0001068,88767.0,88750.0,0.79923433]
[1767106885649,0.01049092,88764.0,88750.0,0.79923433]
[1767106885845,0.01049092,88764.0,88741.0,0.15351]
[1767106885846,0.01049092,88763.0,88741.0,0.15351]
[1767106886047,0.0001068,88767.0,88741.0,0.15351]
[1767106886048,0.01049092,88762.0,88741.0,0.15351]
[1767106886247,0.0001068,88767.0,88726.0,0.01148]
[1767106886248,0.01049092,88761.0,88726.0,0.01148]
[1767106886492,0.0001068,88767.0,88713.0,0.0563523]
[1767106886493,0.012,88759.0,88716.0,0.14203]
[1767106886649,0.012,88759.0,88691.0,0.0005849]
[1767106886650,0.02138085,88758.0,88730.0,0.79923433]
[1767106886848,0.01049092,88757.0,88730.0,0.79923433]
[1767106887087,0.01049092,88756.0,88728.0,0.14203]
[1767106887294,0.01049092,88755.0,88728.0,0.14203]
[1767106887516,0.012,88753.0,88686.0,0.06765439]
[1767106887718,0.03978418,88762.0,88656.0,0.0851797]
[1767106887719,0.000549,88728.0,88695.0,0.08201]
[1767106887924,0.01049092,88727.0,88695.0,0.08201]
[1767106888077,0.01049092,88726.0,88695.0,0.08201]
[1767106888295,0.01049092,88725.0,88700.0,0.79923433]
[1767106888492,0.012,88743.0,88696.0,0.14203]
[1767106888493,0.01049092,88724.0,88696.0,0.14203]
[1767106888727,0.01049092,88723.0,88696.0,0.14203]
[1767106888902,0.01049092,88722.0,88682.0,0.01127624]
[1767106889103,0.01049092,88721.0,88681.0,0.0004]
[1767106889331,0.0001067,88723.0,88681.0,0.0004]
[1767106889332,0.01049092,88720.0,88681.0,0.0004]
[1767106889533,0.02201092,88719.0,88691.0,4.9e-06]
[1767106889709,0.0451867,88723.0,88691.0,0.0011327]
[1767106889710,0.01049092,88718.0,88691.0,0.0011327]
[1767106889911,0.0001067,88723.0,88701.0,0.00023814]
[1767106889912,0.01049092,88717.0,88701.0,0.00023814]
[1767106890117,0.01049092,88716.0,88701.0,0.00023814]
[1767106890336,0.0001067,88723.0,88701.0,0.00023814]
[1767106890541,0.0001067,88723.0,88701.0,0.01175814]
[1767106891065,0.0104532,88722.0,88701.0,0.00023814]
[1767106891201,0.0104532,88721.0,88701.0,0.00023814]
[1767106891401,0.0001067,88723.0,88701.0,0.00023814]
[1767106891707,0.01044556,88722.0,88701.0,0.00023814]
[1767106891880,0.0001067,88723.0,88701.0,0.00023814]
[1767106892050,0.01044548,88722.0,88701.0,0.00023814]
[1767106892252,6.451e-05,88723.0,88701.0,0.00023814]
[1767106892602,6.451e-05,88723.0,88713.0,0.0002]
[1767106892750,0.04508,88752.0,88714.0,0.14203]
[1767106892959,0.01614698,88751.0,88714.0,0.14203]
[1767106893135,0.01043898,88750.0,88714.0,0.14203]
[1767106893334,0.005708,88751.0,88715.0,0.01152]
[1767106893335,0.01043898,88749.0,88715.0,0.01152]
[1767106893540,0.01043898,88748.0,88715.0,0.00552]
[1767106893760,0.005708,88751.0,88715.0,0.00552]
[1767106893761,0.01043898,88747.0,88715.0,0.00552]
[1767106893961,0.01657237,88746.0,88713.0,0.0002]
[1767106894190,0.01043898,88745.0,88713.0,0.0002]
[1767106894391,0.01043898,88744.0,88708.0,0.01152]
[1767106894621,0.00613339,88746.0,88708.0,0.01152]
[1767106894622,0.01043898,88743.0,88708.0,0.01152]
[1767106894816,0.11917,88749.0,88708.0,0.01152]
[1767106894817,0.0002,88723.0,88708.0,0.01152]
[1767106895037,0.02980833,88764.0,88708.0,0.01152]
[1767106895038,0.01152,88761.0,88714.0,0.14203]
[1767106895193,0.01043142,88760.0,88717.0,0.01127179]
[1767106895408,0.01043142,88760.0,88703.0,0.22566931]
[1767106895409,0.01043142,88759.0,88721.0,0.15330128]
[1767106895593,0.01043142,88758.0,88723.0,0.14203]
[1767106895840,0.01043142,88758.0,88722.0,0.0566]
[1767106895841,0.012,88785.0,88731.0,0.14203]
[1767106896173,0.012,88780.0,88730.0,0.14203]
[1767106896369,0.012,88778.0,88730.0,0.14203]
[1767106896639,0.012,88776.0,88730.0,0.15330014]
[1767106896844,0.01043143,88775.0,88740.0,0.94126433]
[1767106897018,0.01043143,88774.0,88741.0,0.01152]
[1767106897227,0.04508,88798.0,88741.0,0.15355]
[1767106897564,0.01043363,88784.0,88744.0,0.14203]
[1767106897753,0.01043363,88783.0,88751.0,0.14203]
[1767106898055,0.03978418,88812.0,88750.0,0.79923433]
[1767106898056,0.01043363,88782.0,88753.0,0.14203]
[1767106898230,0.01152,88804.0,88753.0,0.14203]
[1767106898595,0.01043578,88784.0,88753.0,0.14203]
[1767106898802,0.01152,88804.0,88754.0,0.0566]
[1767106899036,0.01043357,88784.0,88754.0,0.0566]
[1767106899264,0.01043356,88783.0,88752.0,0.01152]
[1767106899473,0.01043356,88782.0,88752.0,0.01152]
[1767106899674,0.01043356,88781.0,88752.0,0.01152]
[1767106899878,0.01714761,88780.0,88752.0,0.01152]
[1767106900096,0.01043356,88779.0,88752.0,0.01152]
[1767106900510,0.01152,88786.0,88752.0,0.01152]
[1767106900511,0.01043356,88778.0,88752.0,0.01152]
[1767106900712,0.04508,88794.0,88752.0,0.01152]
[1767106900915,0.01043484,88784.0,88752.0,0.01152]
[1767106901218,0.01043484,88783.0,88752.0,0.01152]
[1767106901370,0.01043484,88782.0,88752.0,0.01152]
[1767106901572,0.01152,88793.0,88752.0,0.01152]
[1767106901773,0.01043529,88784.0,88752.0,0.01152]
[1767106901972,0.01152,88793.0,88752.0,0.01152]
[1767106902336,0.01043547,88784.0,88752.0,0.01152]
[1767106902615,0.01043547,88783.0,88734.0,0.14203]
[1767106902821,0.11937,88790.0,88734.0,0.14203]
[1767106902822,0.01043547,88782.0,88735.0,0.01152]
[1767106903022,0.11937,88780.0,88726.0,0.04508]
[1767106903318,0.11937,88780.0,88715.0,0.1364]
[1767106903319,0.11937,88778.0,88727.0,0.01152]
[1767106903519,0.01043547,88777.0,88727.0,0.01152]
[1767106903747,0.0566,88776.0,88727.0,0.01152]
[1767106903933,0.01043547,88775.0,88727.0,0.01152]
[1767106904131,0.012,88772.0,88727.0,0.01152]
[1767106904336,0.11937,88773.0,88727.0,0.01152]
[1767106904337,0.012,88770.0,88727.0,0.01152]
[1767106904535,0.012,88768.0,88727.0,0.01152]
[1767106904739,0.012,88768.0,88715.0,0.1364]
[1767106904740,0.012,88766.0,88715.0,0.1364]
[1767106904968,0.01043547,88765.0,88720.0,0.04508]
[1767106906097,0.17494843,88764.0,88720.0,0.04508]
[1767106906306,0.16774,88762.0,88720.0,0.04508]
[1767106906510,0.01695547,88761.0,88720.0,0.04439]
[1767106906766,0.01152,88761.0,88751.0,0.0002]
[1767106906967,0.01152,88761.0,88720.0,0.04439]
[1767106906968,0.0002,88751.0,88720.0,0.04439]
[1767106907362,0.0002,88751.0,88705.0,0.01127332]
[1767106907584,0.16774,88760.0,88706.0,0.04508]
[1767106907792,0.16774,88758.0,88707.0,0.0566]
[1767106908196,0.16784694,88758.0,88707.0,0.0566]
[1767106908398,0.01152,88757.0,88707.0,0.0566]
[1767106908597,0.0566,88757.0,88707.0,0.0566]
[1767106909189,0.16774,88756.0,88707.0,0.0566]
[1767106909398,0.02435729,88755.0,88707.0,0.0566]
[1767106909594,0.19209729,88755.0,88707.0,0.0566]
[1767106909796,0.00010694,88758.0,88726.0,0.01127065]
[1767106909995,0.00010694,88758.0,88740.0,0.79923433]
[1767106910334,0.00010694,88758.0,88742.0,0.01126862]
[1767106910536,0.20784746,88793.0,88746.0,0.01126811]
[1767106910537,0.02980833,88786.0,88746.0,0.01126811]
[1767106910738,0.04132833,88791.0,88746.0,0.00035807]
[1767106910890,0.01152,88791.0,88748.0,0.01126785]
[1767106911094,0.01152,88791.0,88746.0,0.05669845]
[1767106911095,0.01152,88791.0,88747.0,0.01126798]
[1767106911290,0.01152,88791.0,88746.0,0.00035807]
[1767106911501,0.00437662,88790.0,88746.0,0.00035807]
[1767106911723,0.04132833,88791.0,88746.0,0.00035807]
[1767106912059,0.04132833,88791.0,88747.0,0.01152]
[1767106912060,0.02980833,88787.0,88747.0,0.01152]
[1767106912322,0.02980833,88785.0,88747.0,0.01152]
[1767106913327,0.02980833,88784.0,88747.0,0.01152]
[1767106913527,0.02980833,88785.0,88747.0,0.01152]
[1767106913952,0.01152,88776.0,88747.0,0.01152]
[1767106914174,0.017946,88770.0,88747.0,0.01152]
[1767106915684,0.19754833,88777.0,88747.0,0.01152]
[1767106915941,0.01172,88771.0,88747.0,0.01152]
[1767106916241,0.0002,88771.0,88747.0,0.01152]
[1767106918345,0.0002,88771.0,88746.0,0.00035807]
[1767106918662,0.01050395,88770.0,88746.0,0.00035807]
[1767106918820,0.01050395,88769.0,88746.0,0.00035807]
[1767106919615,0.0002,88771.0,88746.0,0.00035807]
[1767106919616,0.01050395,88768.0,88746.0,0.00035807]
[1767106919819,0.01050395,88767.0,88746.0,0.00035807]
[1767106920020,0.01050395,88766.0,88746.0,0.00035807]
[1767106920274,0.01050395,88765.0,88746.0,0.00035807]
[1767106920480,0.01050395,88764.0,88746.0,0.00035807]
[1767106920641,0.01050395,88763.0,88746.0,0.00035807]
[1767106920978,0.0002,88771.0,88746.0,0.00035807]
[1767106920979,0.01050395,88762.0,88746.0,0.00035807]
[1767106921180,0.01050395,88761.0,88746.0,0.00035807]
[1767106921478,0.01050395,88760.0,88746.0,0.00035807]
[1767106921683,0.01050395,88759.0,88746.0,0.00035807]
[1767106921926,0.01050395,88758.0,88746.0,0.00035807]
[1767106922142,0.01050395,88757.0,88746.0,0.00035807]
[1767106922359,0.010519,88756.0,88746.0,0.00035807]
[1767106922579,0.010519,88755.0,88746.0,0.00035807]
[1767106922792,0.010519,88754.0,88746.0,0.00035807]
[1767106923034,0.005519,88753.0,88746.0,0.00035807]
[1767106923248,0.00437662,88767.0,88746.0,7e-08]
[1767106923466,0.0002,88756.0,88746.0,7e-08]
[1767106924357,0.04010746,88770.0,88746.0,7e-08]
[1767106924358,0.04128833,88770.0,88746.0,7e-08]
[1767106924563,0.0002,88771.0,88746.0,7e-08]
[1767106924564,0.02980833,88769.0,88746.0,7e-08]
[1767106924767,0.04010746,88790.0,88770.0,0.000158]
[1767106924896,0.94879,88798.0,88771.0,0.01128]
[1767106924897,0.04010746,88793.0,88771.0,0.01128]
[1767106925095,0.04010746,88789.0,88766.0,0.01148]
[1767106925302,0.0002,88781.0,88764.0,0.01148]
[1767106925503,0.0002,88781.0,88762.0,0.01152]
[1767106925504,0.000391,88764.0,88762.0,0.01152]
[1767106926329,0.0002,88781.0,88762.0,0.01152]
[1767106926528,0.0002,88781.0,88762.0,0.01111999]
[1767106926820,4.2e-05,88781.0,88762.0,0.01111999]
[1767106927429,4.2e-05,88781.0,88763.0,0.0566]
[1767106929368,4.2e-05,88781.0,88769.0,0.01126519]
[1767106929567,4.2e-05,88781.0,88763.0,0.0566]
[1767106929568,4.2e-05,88781.0,88765.0,0.0112657]
[1767106929796,4.2e-05,88781.0,88763.0,0.0566]
[1767106929797,2e-06,88781.0,88778.0,0.01126405]
[1767106929908,0.00054889,88792.0,88780.0,0.89964]
[1767106930111,0.04010746,88821.0,88781.0,0.01126367]
[1767106930435,0.04010746,88824.0,88786.0,0.01126303]
[1767106930671,0.94879,88825.0,88787.0,0.11265709]
[1767106930882,0.0002,88829.0,88790.0,0.79923433]
[1767106931065,0.0002,88829.0,88791.0,0.01148]
[1767106931066,0.00035683,88825.0,88791.0,0.01148]
[1767106931398,0.00035683,88825.0,88795.0,0.01126189]
[1767106931600,0.00035683,88825.0,88797.0,0.01126164]
[1767106931843,0.00035683,88825.0,88791.0,0.9223824]
[1767106932059,0.00035683,88825.0,88791.0,0.91112]
[1767106932462,0.00035683,88825.0,88791.0,0.89964]
[1767106932694,0.000549,88791.0,88753.0,0.89964]
[1767106932895,0.000549,88791.0,88767.0,0.04508]
[1767106933025,0.00437662,88806.0,88753.0,0.89964]
[1767106933227,0.04030462,88804.0,88762.0,0.01152]
[1767106933430,0.98909462,88802.0,88763.0,0.01152]
[1767106933636,0.98909462,88800.0,88762.0,0.01152]
[1767106933855,0.001099,88763.0,88762.0,0.01152]
[1767106934323,0.94879,88787.0,88742.0,0.04508]
[1767106934512,0.94879,88785.0,88750.0,0.01002853]
[1767106934712,0.98909462,88783.0,88736.0,0.0002]
[1767106934916,0.04030462,88780.0,88736.0,0.0002]
[1767106935063,0.95929191,88779.0,88736.0,0.00030694]
[1767106935418,0.95929191,88778.0,88737.0,0.01148]
[1767106935615,0.12194156,88777.0,88737.0,0.01148]
[1767106935777,0.95929191,88776.0,88737.0,0.01148]
[1767106935975,1.49346,88772.0,88736.0,0.00030694]
[1767106936201,0.000549,88737.0,88736.0,9.4e-07]
[1767106936717,0.0002,88746.0,88736.0,9.4e-07]
[1767106936863,0.01050684,88745.0,88736.0,9.4e-07]
[1767106937085,0.01050684,88744.0,88736.0,9.4e-07]
[1767106937278,0.01050684,88743.0,88736.0,9.4e-07]
[1767106937480,0.01050684,88742.0,88736.0,9.4e-07]
[1767106937789,0.01050684,88741.0,88736.0,9.4e-07]
[1767106937999,0.01050684,88740.0,88736.0,9.4e-07]
[1767106938216,0.01050684,88739.0,88736.0,9.4e-07]
[1767106938398,0.01050684,88738.0,88736.0,9.4e-07]
[1767106938605,0.0002,88746.0,88736.0,9.4e-07]
[1767106938802,0.01050711,88745.0,88738.0,0.000306]
[1767106939011,0.01050711,88744.0,88738.0,0.000306]
[1767106939209,0.01050711,88743.0,88736.0,9.4e-07]
[1767106939429,0.0002,88746.0,88736.0,9.4e-07]
[1767106939607,0.01050832,88745.0,88736.0,9.4e-07]
[1767106939814,0.01050832,88744.0,88736.0,9.4e-07]
[1767106940015,0.01050832,88743.0,88736.0,9.4e-07]
[1767106940210,0.01050832,88742.0,88736.0,9.4e-07]
[1767106940410,0.0002,88746.0,88736.0,9.4e-07]
[1767106940611,0.01050654,88745.0,88736.0,9.4e-07]
[1767106940814,0.01050654,88744.0,88736.0,9.4e-07]
[1767106941055,0.01050654,88743.0,88736.0,9.4e-07]
[1767106941256,0.0002,88746.0,88736.0,9.4e-07]
[1767106941257,0.01050654,88742.0,88736.0,9.4e-07]
[1767106941463,0.0002,88746.0,88736.0,9.4e-07]
[1767106941638,0.0002,88746.0,88726.0,0.0002]
[1767106941639,1.50396445,88745.0,88726.0,0.0002]
[1767106941970,1.49346,88743.0,88700.0,0.05656]
[1767106942097,1.49346,88743.0,88682.0,0.01127624]
[1767106942098,1.49346,88739.0,88681.0,0.0004]
[1767106942305,4.3e-05,88703.0,88682.0,0.01148]
[1767106942503,0.01148,88719.0,88682.0,0.01148]
[1767106942706,0.01050242,88718.0,88682.0,0.01148]
[1767106942906,0.01050242,88717.0,88682.0,0.02275624]
[1767106943146,0.01148,88725.0,88688.0,0.01127548]
[1767106943351,0.01049572,88724.0,88692.0,0.01127497]
[1767106943523,0.00010691,88725.0,88692.0,0.01127497]
[1767106943724,9.1e-07,88725.0,88700.0,0.54586216]
[1767106943957,9.1e-07,88725.0,88715.0,0.0002]
[1767106944162,9.1e-07,88725.0,88703.0,0.04508]
[1767106944831,9.1e-07,88725.0,88699.0,0.01127408]
[1767106944997,9.1e-07,88725.0,88704.0,0.01127344]
[1767106945198,9.1e-07,88725.0,88706.0,0.01127319]
[1767106945419,9.1e-07,88725.0,88704.0,0.01283667]
[1767106945582,9.1e-07,88725.0,88704.0,0.00156323]
[1767106945784,9.1e-07,88725.0,88705.0,0.06763992]
[1767106946004,9.1e-07,88725.0,88704.0,0.00156323]
[1767106946272,9.1e-07,88725.0,88703.0,0.00174947]
[1767106946466,9.1e-07,88725.0,88669.0,0.01127789]
[1767106946467,0.000699,88704.0,88655.0,0.04508]
[1767106946641,0.000699,88704.0,88647.0,1.399]
[1767106946642,0.1247346,88703.0,88681.0,4.5e-06]
[1767106946797,0.010489,88702.0,88681.0,4.5e-06]
[1767106947003,0.010489,88701.0,88681.0,4.5e-06]
[1767106947222,0.010489,88700.0,88681.0,4.5e-06]
[1767106947384,0.02417035,88702.0,88681.0,4.5e-06]
[1767106947385,0.010489,88699.0,88681.0,4.5e-06]
[1767106947581,0.010489,88698.0,88681.0,4.5e-06]
[1767106947785,0.010489,88697.0,88681.0,4.5e-06]
[1767106948034,0.010489,88696.0,88681.0,4.5e-06]
[1767106948236,0.010489,88695.0,88666.0,0.0006146]
[1767106948440,0.010489,88694.0,88666.0,0.0006146]
[1767106948639,0.010489,88693.0,88666.0,0.0006146]
[1767106948942,0.11424524,88702.0,88692.0,0.00081843]
[1767106948943,1.49346,88698.0,88692.0,0.00081843]
[1767106949101,1.49346,88698.0,88666.0,3.22e-06]
[1767106949606,0.10642601,88702.0,88666.0,3.22e-06]
[1767106949607,1.49346,88696.0,88666.0,3.22e-06]
[1767106950144,0.01148,88695.0,88666.0,3.22e-06]